bitfinex/quotes_BTCUSD_20240821
["timestamp","ask_amount","ask_price","bid_price","bid_amount"]
[1724255696194,0.02625388,59733.0,59729.0,0.167421]
[1724255696431,0.19366588,59733.0,59729.0,0.167421]
[1724255696876,0.19366588,59733.0,59730.0,0.167418]
[1724255696877,0.02625388,59733.0,59730.0,0.167418]
[1724255697321,0.19366588,59733.0,59730.0,0.167418]
[1724255698707,0.02625388,59733.0,59730.0,0.167418]
[1724255699140,0.19366688,59733.0,59729.0,0.167422]
[1724255699371,0.19326389,59733.0,59730.0,0.167419]
[1724255699815,0.02585089,59733.0,59730.0,0.167419]
[1724255700486,0.229522,59729.0,59728.0,0.0009042]
[1724255700702,0.977312,59729.0,59728.0,0.0009042]
[1724255701157,1.47615998,59729.0,59728.0,0.0009042]
[1724255701376,1.47715998,59729.0,59728.0,0.0009042]
[1724255701616,1.47615998,59729.0,59728.0,0.0009042]
[1724255702069,1.312157,59729.0,59728.0,0.0009042]
[1724255702296,1.314157,59729.0,59728.0,0.0019042]
[1724255702521,1.315157,59729.0,59728.0,0.0019042]
[1724255702740,1.314157,59729.0,59728.0,0.0019042]
[1724255703629,1.312157,59729.0,59728.0,0.0009042]
[1724255704081,1.314157,59729.0,59728.0,0.0019042]
[1724255704973,0.309622,59729.0,59728.0,0.0019042]
[1724255705419,0.309622,59729.0,59728.0,0.01465032]
[1724255705646,0.1422,59729.0,59728.0,0.01465032]
[1724255705871,0.0641,59729.0,59728.0,0.01465032]
[1724255706318,0.002,59729.0,59728.0,0.85177732]
[1724255706539,0.002,59729.0,59728.0,1.3506313]
[1724255706788,0.02585089,59733.0,59728.0,1.3506313]
[1724255706789,0.02585089,59733.0,59732.0,0.83707]
[1724255707441,0.02585089,59733.0,59732.0,0.84977478]
[1724255709203,0.000823,59734.0,59733.0,0.837057]
[1724255709654,0.000823,59734.0,59733.0,0.84975145]
[1724255710577,0.081523,59734.0,59733.0,0.18010545]
[1724255710790,0.081523,59734.0,59733.0,0.18710545]
[1724255711681,0.248931,59734.0,59733.0,0.01969445]
[1724255711904,0.646548,59734.0,59733.0,0.01269445]
[1724255712342,0.646548,59734.0,59729.0,0.167422]
[1724255712343,0.167412,59733.0,59729.0,0.167422]
[1724255713455,0.47914,59734.0,59733.0,0.007]
[1724255713456,0.144323,59734.0,59733.0,0.007]
[1724255713688,0.311731,59734.0,59733.0,0.007]
[1724255713913,0.311731,59734.0,59730.0,0.18014445]
[1724255714137,0.001,59733.0,59730.0,0.18014445]
[1724255714797,0.311731,59734.0,59730.0,0.18014445]
[1724255715019,0.313731,59734.0,59730.0,0.18014445]
[1724255715705,0.334824,59733.0,59730.0,0.01272545]
[1724255715935,0.481144,59734.0,59730.0,0.01272545]
[1724255715936,0.167415,59732.0,59730.0,0.01272545]
[1724255716160,0.167412,59733.0,59729.0,0.167422]
[1724255716903,0.168412,59733.0,59729.0,0.167422]
[1724255717350,0.167412,59733.0,59730.0,0.167419]
[1724255718435,0.167412,59733.0,59728.0,0.1683282]
[1724255718436,0.167416,59732.0,59728.0,0.1683282]
[1724255718656,0.167416,59732.0,59729.0,0.167421]
[1724255718871,0.167416,59732.0,59729.0,0.18015679]
[1724255719752,0.167411,59733.0,59729.0,0.18015679]
[1724255720656,0.167418,59731.0,59729.0,0.01373579]
[1724255720881,0.9198,59730.0,59729.0,0.01373579]
[1724255721116,0.9198,59730.0,59729.0,0.01463999]
[1724255721117,0.9837,59730.0,59729.0,0.01463999]
[1724255721369,0.23132,59730.0,59729.0,0.0009042]
[1724255721577,0.248432,59734.0,59731.0,0.167416]
[1724255721794,0.167412,59733.0,59730.0,0.167419]
[1724255722038,0.167412,59733.0,59729.0,0.1683262]
[1724255722284,0.415842,59734.0,59729.0,0.1683262]
[1724255722285,0.000823,59734.0,59729.0,0.0009042]
[1724255722493,0.000823,59734.0,59733.0,0.167411]
[1724255723491,0.000823,59734.0,59731.0,0.167416]
[1724255723898,0.000823,59734.0,59732.0,0.167413]
[1724255724343,0.001823,59734.0,59732.0,0.167413]
[1724255725703,0.001823,59734.0,59733.0,0.167411]
[1724255725916,0.000823,59734.0,59733.0,0.167411]
[1724255726131,0.000823,59734.0,59733.0,0.502234]
[1724255726345,0.001823,59734.0,59733.0,0.167411]
[1724255726568,0.001823,59734.0,59733.0,0.502234]
[1724255726788,0.000823,59734.0,59733.0,0.502234]
[1724255727324,0.001823,59734.0,59733.0,0.502234]
[1724255727551,0.001823,59734.0,59733.0,0.837057]
[1724255728944,0.000823,59734.0,59733.0,0.837057]
[1724255729374,0.000823,59734.0,59733.0,1.40258298]
[1724255731932,0.000823,59734.0,59733.0,0.842057]
[1724255732427,0.000823,59734.0,59733.0,0.005]
[1724255732428,0.233931,59734.0,59733.0,0.005]
[1724255732660,0.646848,59734.0,59733.0,0.005]
[1724255732888,0.981665,59734.0,59733.0,0.005]
[1724255733333,1.607382,59734.0,59733.0,0.005]
[1724255733554,0.8371,59730.0,59729.0,0.0009042]
[1724255733801,0.9824,59730.0,59729.0,0.0009042]
[1724255734068,1.31724,59730.0,59729.0,0.0009042]
[1724255735877,1.31724,59730.0,59729.0,0.0019042]
[1724255736631,0.64756,59730.0,59729.0,0.0019042]
[1724255736870,0.31272,59730.0,59729.0,0.0019042]
[1724255737105,0.23242,59730.0,59729.0,0.0019042]
[1724255737361,0.167417,59731.0,59729.0,0.0019042]
[1724255737842,0.16742,59730.0,59729.0,0.0019042]
[1724255738765,0.314134,59734.0,59731.0,0.167416]
[1724255739936,0.316134,59734.0,59731.0,0.167416]
[1724255740170,0.148723,59734.0,59729.0,0.0009042]
[1724255740408,0.232232,59734.0,59731.0,0.167416]
[1724255740868,0.065823,59734.0,59731.0,0.167416]
[1724255741104,0.233231,59734.0,59731.0,0.167416]
[1724255741333,0.233231,59734.0,59729.0,0.0009042]
[1724255742031,0.233231,59734.0,59731.0,0.167416]
[1724255742263,0.167412,59733.0,59730.0,0.167419]
[1724255742573,0.167414,59732.0,59729.0,0.1683262]
[1724255742794,0.16742,59730.0,59729.0,0.0009042]
[1724255743045,0.56816,59730.0,59729.0,0.0009042]
[1724255744465,0.000823,59734.0,59730.0,0.167419]
[1724255744678,0.000823,59734.0,59729.0,0.1683262]
[1724255744907,0.167414,59732.0,59729.0,0.1683262]
[1724255745131,0.000823,59734.0,59730.0,0.502257]
[1724255745584,0.168233,59734.0,59731.0,0.167416]
[1724255746328,0.000823,59734.0,59731.0,0.167415]
[1724255746544,0.168232,59734.0,59731.0,0.167415]
[1724255746759,0.167411,59733.0,59730.0,0.0009042]
[1724255747458,0.242917,59731.0,59730.0,0.0009042]
[1724255748173,0.167417,59731.0,59730.0,0.0009042]
[1724255750029,0.000823,59734.0,59730.0,0.0029042]
[1724255750253,0.334824,59733.0,59730.0,0.0029042]
[1724255750483,0.167417,59732.0,59730.0,0.0029042]
[1724255750954,0.167417,59732.0,59730.0,0.0009042]
[1724255751473,0.000823,59734.0,59733.0,0.167411]
[1724255751965,0.000823,59734.0,59732.0,0.167412]
[1724255752443,0.001823,59734.0,59732.0,0.167412]
[1724255752676,0.001823,59734.0,59731.0,0.167417]
[1724255752907,0.081223,59734.0,59731.0,0.167416]
[1724255753170,0.167412,59733.0,59730.0,0.0009042]
[1724255753413,0.082223,59734.0,59731.0,0.167416]
[1724255753645,0.082223,59734.0,59730.0,0.0009042]
[1724255754069,0.0642,59733.0,59730.0,0.0009042]
[1724255754329,0.837085,59731.0,59730.0,0.0009042]
[1724255754575,0.502251,59731.0,59730.0,0.0009042]
[1724255755536,0.000823,59734.0,59730.0,0.3357392]
[1724255756043,0.000823,59734.0,59732.0,0.167413]
[1724255756279,0.000823,59734.0,59730.0,0.5051562]
[1724255756524,0.000823,59734.0,59731.0,0.167415]
[1724255757013,0.001823,59734.0,59731.0,0.167415]
[1724255757487,0.169233,59734.0,59731.0,0.167415]
[1724255758153,0.167417,59731.0,59730.0,0.0009042]
[1724255758382,0.502251,59731.0,59730.0,0.0009042]
[1724255758861,0.582351,59731.0,59730.0,0.0009042]
[1724255759548,0.247517,59731.0,59730.0,0.0009042]
[1724255759774,0.247517,59731.0,59730.0,0.0029042]
[1724255760224,0.167417,59731.0,59730.0,0.0029042]
[1724255760491,0.167417,59731.0,59730.0,0.0009042]
[1724255760967,0.167414,59732.0,59730.0,0.0009042]
[1724255761191,0.167417,59731.0,59730.0,0.0009042]
[1724255761925,0.000823,59734.0,59731.0,0.167416]
[1724255762146,0.167412,59733.0,59730.0,0.0009042]
[1724255762617,0.000823,59734.0,59733.0,0.669646]
[1724255762838,0.000823,59734.0,59733.0,1.33588298]
[1724255763323,0.001823,59734.0,59733.0,1.33588298]
[1724255763778,0.000823,59734.0,59733.0,1.33588298]
[1724255764466,0.000823,59734.0,59733.0,1.00105998]
[1724255764696,0.000823,59734.0,59733.0,0.167411]
[1724255764958,0.000823,59734.0,59731.0,0.167414]
[1724255765218,0.000823,59734.0,59733.0,0.175411]
[1724255765457,0.000823,59734.0,59733.0,0.510234]
[1724255765696,0.000823,59734.0,59733.0,0.167411]
[1724255765966,0.000823,59734.0,59733.0,0.170411]
[1724255766391,0.000823,59734.0,59733.0,0.167411]
[1724255766822,0.000823,59734.0,59733.0,0.003]
[1724255767322,0.000823,59734.0,59733.0,0.170411]
[1724255767740,0.000823,59734.0,59733.0,0.505234]
[1724255768154,0.000823,59734.0,59733.0,0.502234]
[1724255768797,0.000823,59734.0,59733.0,0.167411]
[1724255769252,0.000823,59734.0,59733.0,0.169411]
[1724255769521,0.000823,59734.0,59733.0,0.18210545]
[1724255771500,0.000823,59734.0,59733.0,0.51692845]
[1724255772145,0.000823,59734.0,59733.0,0.58112845]
[1724255772606,0.000823,59734.0,59733.0,1.07995443]
[1724255773078,0.000823,59734.0,59733.0,1.01575443]
[1724255773296,0.000823,59734.0,59733.0,0.18210545]
[1724255773521,0.00823,59744.0,59743.0,0.167383]
[1724255773740,0.00823,59744.0,59743.0,0.50215]
[1724255773977,0.00823,59744.0,59743.0,0.51474114]
[1724255774197,0.00823,59744.0,59743.0,0.01259114]
[1724255774677,0.09053,59744.0,59738.0,0.33479]
[1724255774920,0.09253,59744.0,59743.0,0.001]
[1724255775151,0.01023,59744.0,59743.0,0.001]
[1724255775390,0.00823,59744.0,59742.0,0.167385]
[1724255775600,0.01023,59744.0,59742.0,0.167385]
[1724255775814,0.01023,59744.0,59741.0,0.167389]
[1724255776033,0.01023,59744.0,59740.0,0.334779]
[1724255776034,0.00823,59744.0,59742.0,0.167385]
[1724255776935,0.00823,59744.0,59741.0,0.167388]
[1724255777666,0.00823,59744.0,59742.0,0.01260147]
[1724255777892,0.175611,59744.0,59742.0,0.01260147]
[1724255778134,0.175611,59744.0,59740.0,0.167391]
[1724255778363,0.00823,59744.0,59739.0,0.334787]
[1724255778611,0.00823,59744.0,59743.0,0.58535]
[1724255778875,0.00823,59744.0,59743.0,0.50215]
[1724255779132,0.00823,59744.0,59739.0,0.334785]
[1724255779133,0.00823,59744.0,59741.0,0.167386]
[1724255779607,0.00823,59744.0,59743.0,0.01259114]
[1724255780090,0.07413,59744.0,59742.0,0.167385]
[1724255781350,0.07413,59744.0,59743.0,0.00040299]
[1724255782326,0.07413,59744.0,59743.0,0.16778599]
[1724255783076,0.24151,59744.0,59743.0,0.00040299]
[1724255783324,0.576271,59744.0,59743.0,0.00040299]
[1724255783789,0.24151,59744.0,59743.0,0.00040299]
[1724255784278,0.576271,59744.0,59743.0,0.00040299]
[1724255786190,0.576271,59744.0,59743.0,0.01299413]
[1724255786428,0.576271,59744.0,59743.0,0.00040299]
[1724255786906,1.245793,59744.0,59743.0,0.00040299]
[1724255788121,1.327493,59744.0,59743.0,0.00040299]
[1724255788838,1.49249598,59744.0,59743.0,0.00040299]
[1724255789069,1.97841475,59744.0,59743.0,0.00040299]
[1724255789359,2.48073388,59744.0,59743.0,0.00040299]
[1724255789614,2.71517575,59744.0,59743.0,0.00040299]
[1724255790118,2.2814041,59742.0,59741.0,0.0009042]
[1724255790362,2.49460675,59742.0,59741.0,0.0009042]
[1724255790599,2.7450568,59742.0,59741.0,0.0009042]
[1724255790817,2.59460675,59742.0,59741.0,0.0009042]
[1724255791428,2.74506072,59742.0,59741.0,0.0009042]
[1724255791630,2.75858553,59742.0,59741.0,0.0009042]
[1724255792040,2.75858553,59742.0,59731.0,0.0009042]
[1724255792041,1.5116841,59732.0,59731.0,2e-07]
[1724255792271,1.1981251,59729.0,59727.0,0.0009042]
[1724255792477,2.03599084,59729.0,59727.0,0.0009042]
[1724255792703,2.70340775,59729.0,59727.0,0.0009042]
[1724255793785,2.82860104,59729.0,59727.0,0.0009042]
[1724255794012,2.98493082,59729.0,59727.0,0.0009042]
[1724255794458,2.82860104,59729.0,59727.0,0.0009042]
[1724255794683,2.70340775,59729.0,59727.0,0.0009042]
[1724255794904,2.77948208,59729.0,59728.0,0.0019042]
[1724255795127,2.70440775,59729.0,59728.0,0.0019042]
[1724255795364,4.13590953,59729.0,59728.0,0.0019042]
[1724255795795,4.23595896,59729.0,59728.0,0.0019042]
[1724255796017,4.23595896,59729.0,59728.0,2e-07]
[1724255796018,4.60553599,59729.0,59728.0,2e-07]
[1724255796288,1.64718,59714.0,59713.0,0.0009042]
[1724255796506,2.22508298,59714.0,59713.0,0.0009042]
[1724255798246,2.23908298,59714.0,59713.0,0.0019042]
[1724255799398,2.22508298,59714.0,59713.0,0.0009042]
[1724255799622,1.332951,59714.0,59713.0,0.0009042]
[1724255799840,1.286251,59714.0,59713.0,0.0009042]
[1724255800539,1.272251,59714.0,59713.0,0.0009042]
[1724255800763,1.286251,59714.0,59713.0,0.0009042]
[1724255801863,0.951322,59714.0,59713.0,0.0809042]
[1724255802076,0.014,59714.0,59713.0,0.1446042]
[1724255802508,0.014,59714.0,59713.0,0.15648207]
[1724255803564,0.014,59714.0,59713.0,0.15612306]
[1724255804318,0.181464,59714.0,59713.0,0.15612306]
[1724255804538,0.851322,59714.0,59713.0,0.09242306]
[1724255804732,0.851322,59714.0,59713.0,0.01242306]
[1724255804975,0.014,59714.0,59713.0,0.09082306]
[1724255805199,0.014,59714.0,59713.0,0.07894519]
[1724255805413,0.014,59714.0,59713.0,0.31011219]
[1724255805632,0.014,59714.0,59713.0,0.64504719]
[1724255806065,0.167449,59720.0,59715.0,0.16746]
[1724255806274,0.167451,59719.0,59715.0,0.16746]
[1724255806492,0.167451,59719.0,59716.0,0.01184685]
[1724255806700,0.167448,59720.0,59716.0,0.01184685]
[1724255806917,0.167448,59720.0,59717.0,0.08]
[1724255807368,0.167454,59718.0,59716.0,0.01184685]
[1724255807809,0.167454,59718.0,59714.0,0.247463]
[1724255808464,0.167454,59718.0,59715.0,0.01185719]
[1724255808678,0.16745,59719.0,59715.0,0.17931819]
[1724255808915,0.334894,59721.0,59715.0,0.01185719]
[1724255808916,0.167454,59718.0,59715.0,0.01185719]
[1724255809367,0.167459,59716.0,59715.0,0.01185719]
[1724255809798,0.334907,59719.0,59715.0,0.01185719]
[1724255810016,0.167457,59717.0,59715.0,0.01185719]
[1724255810471,0.167452,59719.0,59715.0,0.17931819]
[1724255810687,0.167452,59719.0,59716.0,0.167459]
[1724255811149,0.167452,59719.0,59717.0,0.01183651]
[1724255811593,0.334894,59721.0,59716.0,0.167459]
[1724255811848,0.167449,59720.0,59718.0,0.01182617]
[1724255812063,0.167449,59720.0,59717.0,0.01183651]
[1724255812292,0.167449,59720.0,59719.0,0.01181583]
[1724255812496,0.167449,59720.0,59718.0,0.01182617]
[1724255812703,0.167449,59720.0,59719.0,0.09041583]
[1724255812914,0.434883,59723.0,59719.0,0.09041583]
[1724255813137,0.334843,59730.0,59722.0,0.0783]
[1724255813348,0.334843,59730.0,59725.0,0.167432]
[1724255813349,0.16742,59730.0,59725.0,0.167432]
[1724255813568,0.16742,59730.0,59723.0,0.334878]
[1724255813569,0.167418,59731.0,59727.0,0.139]
[1724255813777,0.80631646,59732.0,59727.0,0.139]
[1724255813778,0.16742,59730.0,59727.0,0.139]
[1724255813988,0.80631646,59732.0,59727.0,0.139]
[1724255813989,0.168246,59729.0,59727.0,0.139]
[1724255814634,0.171246,59729.0,59728.0,0.0117228]
[1724255814862,0.003823,59729.0,59728.0,0.0117228]
[1724255815073,0.003823,59729.0,59727.0,0.139]
[1724255815308,0.003823,59729.0,59728.0,0.0117228]
[1724255815541,0.004823,59729.0,59728.0,0.9850498]
[1724255815760,0.004823,59729.0,59728.0,0.973327]
[1724255815982,0.000823,59729.0,59728.0,0.9850498]
[1724255817959,0.001823,59729.0,59728.0,0.9850498]
[1724255818193,0.002823,59729.0,59728.0,0.9850498]
[1724255818403,0.002823,59729.0,59728.0,0.0870228]
[1724255818404,0.001823,59729.0,59728.0,0.0870228]
[1724255818624,0.001823,59729.0,59728.0,0.0920228]
[1724255819387,0.001823,59729.0,59728.0,0.2594478]
[1724255819757,0.000823,59729.0,59728.0,0.0920228]
[1724255820759,0.001823,59729.0,59728.0,0.0870228]
[1724255820989,0.001823,59729.0,59728.0,0.0890228]
[1724255822174,0.001823,59729.0,59728.0,0.0870228]
[1724255822625,0.003823,59729.0,59728.0,0.2544478]
[1724255823129,0.002823,59729.0,59728.0,0.2544478]
[1724255823377,0.002823,59729.0,59728.0,0.6523988]
[1724255823596,0.002823,59729.0,59728.0,0.9872498]
[1724255824314,0.000823,59729.0,59728.0,1.48610378]
[1724255824770,0.006823,59729.0,59728.0,1.48710378]
[1724255824996,0.000823,59729.0,59728.0,1.48610378]
[1724255825434,0.001823,59729.0,59728.0,1.49310378]
[1724255825698,0.000823,59729.0,59728.0,1.48610378]
[1724255825919,0.000823,59729.0,59728.0,1.49810378]
[1724255826134,0.001823,59729.0,59728.0,1.49810378]
[1724255826363,0.002823,59729.0,59728.0,1.49810378]
[1724255826815,0.001823,59729.0,59728.0,1.49810378]
[1724255827274,0.002823,59729.0,59728.0,1.49810378]
[1724255827731,0.002823,59729.0,59728.0,0.9992498]
[1724255828831,0.002823,59729.0,59728.0,0.0237228]
[1724255829055,1.48458298,59729.0,59728.0,0.0237228]
[1724255829284,1.98540676,59729.0,59728.0,0.0237228]
[1724255829541,2.08540676,59729.0,59728.0,0.012]
[1724255829770,0.502393,59714.0,59713.0,0.00054519]
[1724255829993,0.167464,59714.0,59713.0,0.00054519]
[1724255830223,0.502393,59714.0,59713.0,0.00054519]
[1724255830446,0.9286427,59714.0,59713.0,0.01064455]
[1724255830672,0.902622,59714.0,59713.0,0.00054519]
[1724255831577,1.237551,59714.0,59713.0,0.00054519]
[1724255831802,1.237551,59714.0,59713.0,0.00154519]
[1724255831803,1.243551,59714.0,59713.0,0.00154519]
[1724255832050,0.908622,59714.0,59713.0,0.00154519]
[1724255832268,0.902622,59714.0,59713.0,0.00054519]
[1724255832486,0.908622,59714.0,59713.0,0.00154519]
[1724255832932,0.911622,59714.0,59713.0,0.00154519]
[1724255833379,0.902622,59714.0,59713.0,0.00054519]
[1724255833821,0.910622,59714.0,59713.0,0.00054519]
[1724255834790,0.902622,59714.0,59713.0,0.00054519]
[1724255835022,1.59625398,59714.0,59713.0,0.00154519]
[1724255835259,1.60825398,59714.0,59713.0,0.00054519]
[1724255835488,2.10616229,59714.0,59713.0,0.00054519]
[1724255835715,2.14337956,59714.0,59713.0,0.00154519]
[1724255836157,2.14037956,59714.0,59713.0,0.00054519]
[1724255836350,2.14037956,59714.0,59713.0,0.00154519]
[1724255836351,2.15437956,59714.0,59713.0,0.00154519]
[1724255836618,2.51877956,59714.0,59713.0,0.00154519]
[1724255836852,2.49677956,59714.0,59713.0,0.00054519]
[1724255837102,2.51077956,59714.0,59713.0,0.00054519]
[1724255837364,2.34975835,59714.0,59713.0,0.00054519]
[1724255838302,2.68468735,59714.0,59713.0,0.00054519]
[1724255838592,2.69868735,59714.0,59713.0,1.9e-07]
[1724255839324,3.01961635,59714.0,59713.0,1.9e-07]
[1724255839568,3.11952945,59714.0,59713.0,1.9e-07]
[1724255839866,3.28350823,59714.0,59713.0,1.9e-07]
[1724255840072,4.56420823,59714.0,59713.0,1.9e-07]
[1724255840295,1.9962001,59713.0,59712.0,3.9e-07]
[1724255840514,2.52333985,59713.0,59712.0,3.9e-07]
[1724255840765,2.30942035,59713.0,59712.0,3.9e-07]
[1724255840989,2.69429607,59713.0,59712.0,3.9e-07]
[1724255841238,2.69429362,59713.0,59712.0,3.9e-07]
[1724255841453,2.64435535,59713.0,59712.0,3.9e-07]
[1724255841696,2.85827218,59713.0,59712.0,3.9e-07]
[1724255842155,2.85827218,59713.0,59688.0,0.0009042]
[1724255842156,1.678345,59689.0,59688.0,0.0009042]
[1724255842426,1.84234798,59689.0,59688.0,0.0009042]
[1724255842650,2.27741798,59689.0,59688.0,0.0009042]
[1724255842878,1.91301798,59689.0,59688.0,0.0009042]
[1724255843342,2.07699676,59689.0,59688.0,0.0009042]
[1724255843566,1.94101798,59689.0,59688.0,0.0009042]
[1724255844707,1.80930971,59689.0,59688.0,0.0009042]
[1724255844972,0.97516673,59689.0,59688.0,0.0009042]
[1724255845653,0.965675,59689.0,59688.0,0.0009042]
[1724255845869,0.965675,59689.0,59688.0,0.0795042]
[1724255846558,0.951675,59689.0,59688.0,0.0795042]
[1724255846826,0.948675,59689.0,59688.0,0.0795042]
[1724255847059,0.961675,59689.0,59688.0,0.0795042]
[1724255847537,0.961675,59689.0,59688.0,0.0009042]
[1724255848205,1.296745,59689.0,59688.0,0.0009042]
[1724255848677,1.52384798,59689.0,59688.0,0.0009042]
[1724255848896,1.52484798,59689.0,59688.0,0.0009042]
[1724255849577,1.96291798,59689.0,59688.0,0.0009042]
[1724255849806,1.60184798,59689.0,59688.0,0.0009042]
[1724255850355,1.58084798,59689.0,59688.0,0.0009042]
[1724255850595,2.4623764,59689.0,59688.0,0.0009042]
[1724255850819,2.4763764,59689.0,59688.0,0.0009042]
[1724255851059,1.97924798,59689.0,59688.0,0.0009042]
[1724255851514,1.95624798,59689.0,59688.0,0.0009042]
[1724255851763,1.46474798,59689.0,59688.0,0.0009042]
[1724255852024,1.45074798,59689.0,59688.0,0.0009042]
[1724255852257,1.43674798,59689.0,59688.0,0.0009042]
[1724255852479,1.46474798,59689.0,59688.0,0.0009042]
[1724255852676,1.6480051,59689.0,59688.0,0.0009042]
[1724255852936,1.6460051,59689.0,59688.0,0.0009042]
[1724255853183,1.6570051,59689.0,59688.0,0.0009042]
[1724255853430,1.6600051,59689.0,59688.0,0.0009042]
[1724255853663,2.0457751,59689.0,59688.0,0.0009042]
[1724255854375,1.61254798,59689.0,59688.0,0.0009042]
[1724255854830,1.60154798,59689.0,59688.0,0.0009042]
[1724255855285,1.46474798,59689.0,59688.0,0.0009042]
[1724255858838,0.965675,59689.0,59688.0,0.0009042]
[1724255859333,0.965675,59689.0,59688.0,0.00974258]
[1724255859334,0.97874063,59689.0,59688.0,0.00974258]
[1724255859572,0.97874063,59689.0,59688.0,0.0009042]
[1724255859816,0.64367063,59689.0,59688.0,0.09214258]
[1724255860059,0.64367063,59689.0,59688.0,0.1445042]
[1724255860060,0.02706563,59689.0,59688.0,0.1445042]
[1724255860289,0.20760006,59689.0,59688.0,0.15334258]
[1724255860759,0.19360006,59689.0,59688.0,0.15334258]
[1724255860985,0.02606506,59689.0,59688.0,0.15334258]
[1724255861450,0.20460006,59689.0,59688.0,0.15334258]
[1724255861711,0.18060006,59689.0,59688.0,0.15334258]
[1724255862204,0.18160006,59689.0,59688.0,0.15334258]
[1724255862475,0.85174006,59689.0,59688.0,0.15334258]
[1724255862720,0.86374006,59689.0,59688.0,0.15334258]
[1724255862957,0.86374006,59689.0,59688.0,0.1445042]
[1724255863486,0.85174006,59689.0,59688.0,0.0833042]
[1724255863698,0.85474006,59689.0,59688.0,0.0833042]
[1724255865654,1.24654526,59689.0,59688.0,0.0009042]
[1724255865662,1.18981006,59689.0,59688.0,0.0009042]
[1724255866854,1.18981128,59689.0,59688.0,0.0009042]
[1724255870243,1.35381413,59689.0,59688.0,0.0009042]
[1724255870484,1.43461413,59689.0,59688.0,0.0009042]
[1724255870775,1.72621413,59689.0,59688.0,0.0009042]
[1724255871014,1.78981413,59689.0,59688.0,0.0009042]
[1724255871746,1.95379291,59689.0,59688.0,0.0009042]
[1724255871996,1.78981413,59689.0,59688.0,0.0009042]
[1724255872447,1.70901413,59689.0,59688.0,0.0009042]
[1724255873590,1.70901459,59689.0,59688.0,0.0009042]
[1724255876117,1.40434798,59689.0,59688.0,0.0009042]
[1724255876347,0.85474139,59689.0,59688.0,0.1482042]
[1724255877345,0.841675,59689.0,59688.0,0.1482042]
[1724255878612,0.841675,59689.0,59688.0,0.0835042]
[1724255879303,0.841675,59689.0,59688.0,0.09270925]
[1724255880481,0.506605,59689.0,59688.0,0.09270925]
[1724255880728,0.841675,59689.0,59688.0,0.09270925]
[1724255880949,0.841675,59689.0,59688.0,0.01010925]
[1724255881638,0.841675,59689.0,59688.0,0.0009042]
[1724255882131,0.506605,59689.0,59688.0,0.01010925]
[1724255882357,0.841675,59689.0,59688.0,0.0009042]
[1724255883755,0.983175,59689.0,59688.0,0.0009042]
[1724255884029,1.77384798,59689.0,59688.0,0.0009042]
[1724255884266,1.90107116,59689.0,59688.0,0.0009042]
[1724255884497,2.25909926,59689.0,59688.0,0.0009042]
[1724255884717,2.26864016,59689.0,59688.0,0.0009042]
[1724255885433,2.43461894,59689.0,59688.0,0.0009042]
[1724255885667,2.39710076,59689.0,59688.0,0.0009042]
[1724255885903,2.60671016,59689.0,59688.0,0.0009042]
[1724255886126,2.61371016,59689.0,59688.0,0.0009042]
[1724255886353,2.61071016,59689.0,59688.0,0.0009042]
[1724255886586,2.61271016,59689.0,59688.0,0.0009042]
[1724255886826,1.9128991,59684.0,59683.0,4e-07]
[1724255887065,1.9128991,59684.0,59682.0,0.009064]
[1724255887066,0.5076121,59683.0,59682.0,0.009064]
[1724255887309,0.5076121,59683.0,59671.0,0.0002]
[1724255887310,1.0452051,59672.0,59671.0,0.0002]
[1724255887542,2.32701352,59672.0,59671.0,0.0002]
[1724255887830,2.75998139,59672.0,59671.0,0.0002]
[1724255888062,2.65952626,59672.0,59671.0,0.0002]
[1724255888526,2.73482665,59672.0,59671.0,0.0002]
[1724255888984,2.65952626,59672.0,59671.0,0.0002]
[1724255889223,2.91631213,59672.0,59671.0,0.0002]
[1724255889691,3.27947713,59672.0,59671.0,0.0002]
[1724255889924,3.27947713,59672.0,59668.0,0.009042]
[1724255889925,1.3180951,59669.0,59668.0,0.009042]
[1724255890152,2.35395363,59669.0,59668.0,0.009042]
[1724255890414,2.51793241,59669.0,59668.0,0.009042]
[1724255890639,2.46566404,59669.0,59668.0,0.009042]
[1724255890870,2.46566404,59669.0,59654.0,0.009042]
[1724255890871,0.4049581,59664.0,59654.0,0.009042]
[1724255891098,1.71013316,59664.0,59654.0,0.009042]
[1724255891330,3.24003208,59664.0,59654.0,0.009042]
[1724255891558,2.99873926,59664.0,59654.0,0.009042]
[1724255891794,3.0989746,59664.0,59654.0,0.009042]
[1724255892037,2.7597646,59664.0,59654.0,0.009042]
[1724255892279,2.66152926,59664.0,59654.0,0.009042]
[1724255892524,2.82550804,59664.0,59654.0,0.009042]
[1724255892753,3.24754634,59664.0,59654.0,0.009042]
[1724255893017,2.93739468,59664.0,59654.0,0.009042]
[1724255893485,2.83715934,59664.0,59654.0,0.009042]
[1724255893718,2.85115934,59664.0,59654.0,0.009042]
[1724255893949,2.68318056,59664.0,59654.0,0.009042]
[1724255894180,2.68518056,59664.0,59654.0,0.009042]
[1724255894406,2.69925329,59664.0,59654.0,0.009042]
[1724255894635,2.28725329,59664.0,59654.0,0.009042]
[1724255894871,2.68725329,59664.0,59654.0,0.009042]
[1724255895104,2.86523207,59664.0,59654.0,0.009042]
[1724255895626,2.19419519,59664.0,59654.0,0.009042]
[1724255895879,2.28145329,59664.0,59654.0,0.009042]
[1724255896358,1.53938519,59664.0,59656.0,0.0664]
[1724255896582,1.83098519,59664.0,59656.0,0.0664]
[1724255896825,1.84498519,59664.0,59656.0,0.0664]
[1724255897063,1.85898519,59664.0,59656.0,0.0664]
[1724255897290,1.76478519,59664.0,59656.0,0.0664]
[1724255897526,1.76478519,59664.0,59654.0,0.088342]
[1724255897527,2.24299519,59664.0,59654.0,0.009042]
[1724255897756,2.27495329,59664.0,59654.0,0.009042]
[1724255897986,2.29595329,59664.0,59654.0,0.009042]
[1724255898226,2.29795329,59664.0,59654.0,0.009042]
[1724255898452,2.29595329,59664.0,59654.0,0.009042]
[1724255898681,2.29795329,59664.0,59654.0,0.009042]
[1724255898923,3.19714207,59664.0,59654.0,0.009042]
[1724255900073,2.66995329,59664.0,59654.0,0.009042]
[1724255900301,2.69795329,59664.0,59654.0,0.009042]
[1724255900823,3.01916329,59664.0,59654.0,0.009042]
[1724255901290,3.03316329,59664.0,59654.0,0.009042]